bitfinex-derivatives/quotes_SOLF0:USTF0_20220102
["timestamp","ask_amount","ask_price","bid_price","bid_amount"]
[1641126349832,2.76511878,175.67,175.63,4.04192325]
[1641126350533,4.04192092,175.64,175.62,1.2768211]
[1641126351233,39.78691612,175.68,175.61,29.9963]
[1641126351436,2.76510173,175.67,175.63,4.04190775]
[1641126352133,39.78691612,175.68,175.64,4.0419259]
[1641126352833,39.78691612,175.68,175.61,29.9963]
[1641126353133,2.76500525,175.67,175.61,29.9963]
[1641126354635,27.66479,175.68,175.61,29.9963]
[1641126354833,27.66479,175.68,175.64,4.0419067]
[1641126355336,27.66479,175.68,175.61,29.9963]
[1641126355537,14.8908392,175.67,175.63,4.04191122]
[1641126356135,14.8908392,175.67,175.62,1.27680649]
[1641126356940,14.8908392,175.67,175.61,29.9963]
[1641126356941,14.8908392,175.67,175.63,4.04194484]
[1641126357839,14.8908392,175.67,175.62,5.3187327]
[1641126358239,14.8908392,175.67,175.61,29.9963]
[1641126358439,2.76510554,175.67,175.61,29.9963]
[1641126359239,27.66479,175.68,175.62,5.3079173]
[1641126360040,27.66479,175.68,175.61,29.9963]
[1641126360242,2.75952048,175.67,175.61,34.03007102]
[1641126360843,2.75952048,175.67,175.62,5.30797739]
[1641126361848,27.66479,175.68,175.61,29.9963]
[1641126362249,15.12573366,175.69,175.61,29.9963]
[1641126362551,14.88522849,175.68,175.62,5.30800057]
[1641126364150,14.88522849,175.68,175.61,29.9963]
[1641126364350,2.75949483,175.68,175.61,29.9963]
[1641126364755,30.42428483,175.68,175.62,5.30798305]
[1641126365851,2.75949483,175.67,175.61,29.9963]
[1641126366251,27.66479,175.68,175.61,29.9963]
[1641126366451,27.66479,175.68,175.63,4.03365844]
[1641126367254,27.66479,175.68,175.61,29.9963]
[1641126367453,4.03377362,175.65,175.62,4.03377362]
[1641126367953,27.66479,175.68,175.61,29.9963]
[1641126368154,4.04184549,175.64,175.63,4.04184549]
[1641126368853,4.04184549,175.64,175.62,1.27681225]
[1641126368854,2.76491826,175.67,175.61,29.9963]
[1641126369555,27.66479,175.68,175.61,29.9963]
[1641126369758,27.66479,175.68,175.64,4.04174818]
[1641126370456,27.66479,175.68,175.61,29.9963]
[1641126370657,2.76492036,175.67,175.61,29.9963]
[1641126371158,39.7900186,175.68,175.64,4.04173247]
[1641126372059,39.7900186,175.68,175.61,29.9963]
[1641126372260,14.89022861,175.67,175.63,4.04181528]
[1641126372759,39.78998553,175.68,175.64,4.04173184]
[1641126372963,12.12519553,175.68,175.64,4.04173184]
[1641126373561,14.89010261,175.68,175.64,1.27682372]
[1641126374265,14.89010261,175.69,175.65,4.04146207]
[1641126374962,27.66479,175.71,175.63,6.128]
[1641126375263,12.12367046,175.7,175.66,4.04122349]
[1641126376064,27.66479,175.71,175.65,30.6482]
[1641126376263,2.76407462,175.7,175.67,4.04097401]
[1641126376464,2.76407462,175.7,175.67,8.87897401]
[1641126377064,27.66479,175.71,175.67,4.838]
[1641126377666,2.76408495,175.7,175.67,8.87898341]
[1641126378466,27.66479,175.71,175.67,4.838]
[1641126379168,2.76409256,175.7,175.67,4.04099032]
[1641126379368,7.20709256,175.7,175.67,4.04099032]
[1641126379768,4.443,175.7,175.63,12.12881053]
[1641126379968,14.88874152,175.69,175.65,4.04139959]
[1641126380775,14.5093804,175.7,175.63,1.27685684]
[1641126381677,14.5093804,175.7,175.62,30.3505]
[1641126381977,14.88879369,175.69,175.65,4.04141231]
[1641126382478,2.76455675,175.69,175.63,1.2768682]
[1641126383077,16.56723694,175.7,175.65,4.04128925]
[1641126383876,2.76441762,175.69,175.63,1.27686821]
[1641126384577,16.56723694,175.7,175.66,4.04126075]
[1641126385179,2.76437841,175.69,175.63,1.27687178]
[1641126385776,16.56723694,175.7,175.62,42.47931053]
[1641126385978,4.04124216,175.66,175.65,4.04124216]
[1641126386882,16.56723694,175.7,175.62,30.3505]
[1641126387078,14.88864619,175.69,175.63,1.27686898]
[1641126387682,14.50894347,175.7,175.65,4.0413256]
[1641126388882,14.88855954,175.69,175.63,1.27686128]
[1641126389484,14.50894347,175.7,175.62,30.3505]
[1641126389684,4.443,175.7,175.65,4.04136296]
[1641126389983,10.06594347,175.71,175.65,4.04136296]
[1641126390187,37.73073347,175.71,175.65,4.04136296]
[1641126390585,12.12410471,175.69,175.63,1.27685997]
[1641126391186,14.88818371,175.7,175.66,4.04122515]
[1641126391787,14.88818371,175.7,175.62,70.14410053]
[1641126391987,12.12367545,175.69,175.65,4.04137211]
[1641126392588,14.88818371,175.69,175.62,58.01529]
[1641126393288,14.88818371,175.69,175.62,30.3505]
[1641126393487,14.88818371,175.69,175.65,4.041376]
[1641126394088,16.91928148,175.7,175.62,30.3505]
[1641126394289,27.66479,175.68,175.62,30.3505]
[1641126394989,2.76452432,175.67,175.65,4.04138284]
[1641126395790,27.66479,175.68,175.62,42.47931053]
[1641126396491,2.76439508,175.67,175.66,4.04126534]
[1641126397192,27.66479,175.68,175.65,4.04139665]
[1641126398093,27.66479,175.68,175.63,1.27685732]
[1641126398291,2.76453751,175.67,175.63,1.27685732]
[1641126398791,27.66479,175.68,175.65,4.04138927]
[1641126400192,27.66479,175.68,175.62,30.3505]
[1641126400394,2.76453545,175.67,175.63,1.2768575]
[1641126400794,27.66479,175.68,175.65,4.04140053]
[1641126401593,2.76454475,175.67,175.63,1.27685666]
[1641126402895,27.66479,175.68,175.65,4.04140427]
[1641126403394,27.66479,175.68,175.62,30.3505]
[1641126403694,2.76454413,175.67,175.63,1.27685671]
[1641126404193,27.66479,175.68,175.65,4.04140046]
[1641126404694,27.66479,175.68,175.63,1.27685658]
[1641126404993,2.76454562,175.67,175.63,1.27685658]
[1641126405595,27.66479,175.68,175.62,30.3505]
[1641126405800,27.66479,175.68,175.65,4.04140502]
[1641126406094,2.76455037,175.67,175.64,4.04140652]
[1641126406595,27.66479,175.68,175.62,30.3505]
[1641126407995,2.76449521,175.67,175.65,4.04135637]
[1641126408498,27.66479,175.68,175.62,30.3505]
[1641126409296,2.76464676,175.67,175.64,4.04149415]
[1641126410598,27.66479,175.68,175.62,30.3505]
[1641126411098,2.76467324,175.67,175.64,4.04151822]
[1641126411598,27.66479,175.68,175.62,30.3505]
[1641126412600,2.76126319,175.67,175.63,5.31179947]
[1641126413602,27.66479,175.68,175.63,4.03653133]
[1641126413802,27.66479,175.68,175.64,4.03650031]
[1641126414202,2.76117441,175.67,175.63,1.27527621]
[1641126415003,27.66479,175.68,175.62,30.3505]
[1641126415202,27.66479,175.68,175.64,4.03649259]
[1641126415902,2.76121973,175.67,175.63,1.27527209]
[1641126416706,39.77426545,175.7,175.64,4.03649388]
[1641126417406,39.77426545,175.7,175.63,1.27527763]
[1641126417407,2.76122199,175.69,175.63,1.27527763]
[1641126418106,39.77426545,175.7,175.62,30.3505]
[1641126418307,46.26126545,175.7,175.66,4.04135181]
[1641126419008,46.26126545,175.7,175.62,42.47931053]
[1641126419207,14.87404807,175.69,175.65,4.04142674]
[1641126419911,34.15179,175.7,175.62,30.3505]
[1641126420112,46.27582898,175.7,175.66,4.04134633]
[1641126420312,39.78882898,175.7,175.66,4.04134633]
[1641126420814,39.78882898,175.7,175.62,42.47931053]
[1641126421317,39.78882898,175.7,175.63,1.27685905]
[1641126421514,2.76451843,175.69,175.63,1.27685905]
[1641126422214,39.78882898,175.7,175.66,4.04128586]
[1641126422817,2.76441442,175.69,175.63,1.27686851]
[1641126423317,27.66479,175.7,175.62,42.47931053]
[1641126423517,39.78850542,175.7,175.66,4.04123847]
[1641126424118,2.76428857,175.69,175.63,1.27687995]
[1641126425020,29.5738,175.71,175.63,1.27687995]
[1641126425223,29.5738,175.71,175.66,4.04122211]
[1641126425420,27.66479,175.7,175.66,4.04122211]
[1641126425720,2.76415988,175.69,175.62,42.47931053]
[1641126426423,27.66479,175.7,175.62,42.47931053]
[1641126426623,29.5738,175.71,175.66,4.04109737]
[1641126427121,14.88752128,175.7,175.63,1.27688706]
[1641126427523,42.55231128,175.7,175.63,1.27688706]
[1641126427921,27.66479,175.7,175.66,4.04110605]
[1641126428623,2.76429796,175.69,175.63,1.27688706]
[1641126429230,45.87432117,175.7,175.66,4.04119041]
[1641126429929,2.76433712,175.69,175.65,4.04121265]
[1641126430732,12.12353117,175.7,175.66,4.04121577]
[1641126431838,2.76427483,175.7,175.63,1.2768812]
[1641126432338,41.69709652,175.71,175.66,4.04109884]
[1641126433139,2.76421387,175.7,175.63,19.5047894]
[1641126433341,30.42900387,175.7,175.63,19.5047894]
[1641126433741,2.76418567,175.69,175.67,4.04107497]
[1641126434641,27.66479,175.7,175.66,1.2768812]
[1641126435139,2.76418397,175.69,175.67,4.04107342]
[1641126435640,27.66479,175.7,175.65,5.115]
[1641126435840,27.66479,175.7,175.65,9.14801229]
[1641126436541,2.75867777,175.69,175.65,5.115]
[1641126437142,27.66479,175.7,175.65,9.14798411]
[1641126437841,2.75864271,175.69,175.65,5.115]
[1641126438345,29.5738,175.71,175.65,5.115]
[1641126438544,29.5738,175.71,175.65,9.14800168]
[1641126439044,2.75865387,175.7,175.65,5.115]
[1641126439243,2.75865387,175.7,175.62,33.3505]
[1641126439643,30.42344387,175.7,175.62,33.3505]
[1641126439843,27.66479,175.7,175.65,4.03298907]
[1641126440443,27.66479,175.7,175.63,1.2743391]
[1641126440644,2.75873328,175.69,175.64,4.0330648]
[1641126441245,27.66479,175.7,175.66,4.03280517]
[1641126442046,27.66479,175.7,175.62,48.71239157]
[1641126442245,2.76395068,175.69,175.67,4.04086135]
[1641126443044,27.66479,175.7,175.67,4.04086135]
[1641126443246,39.787837,175.7,175.66,4.04101567]
[1641126443946,2.76408478,175.69,175.67,4.04098325]
[1641126444846,46.00273976,175.7,175.66,4.04103009]
[1641126445147,39.78773976,175.7,175.66,4.04103009]
[1641126445447,2.76413348,175.69,175.67,4.04102753]
[1641126446347,27.66479,175.7,175.63,19.50479033]
[1641126446849,29.8055,175.74,175.63,19.50479033]
[1641126447046,2.76409191,175.69,175.67,4.04098974]
[1641126447750,2.76409233,175.73,175.63,19.50479033]
[1641126447950,12.82899864,175.73,175.63,19.50479033]
[1641126448452,12.12098012,175.71,175.67,4.04032671]
[1641126449053,12.82899864,175.73,175.63,19.50479033]
[1641126449854,12.12097585,175.71,175.67,4.04032528]
[1641126450353,12.12064443,175.72,175.63,19.50479033]
[1641126450654,27.66479,175.7,175.63,19.50479033]
[1641126451454,2.76409233,175.69,175.67,4.04020933]
[1641126451653,27.66479,175.7,175.67,4.04020933]
[1641126451856,27.66479,175.7,175.66,4.04048921]
[1641126451857,39.78543443,175.7,175.66,4.04048921]
[1641126452457,39.78543443,175.7,175.65,4.04060837]
[1641126452458,2.76396686,175.69,175.65,4.04060837]
[1641126453056,27.66479,175.7,175.62,42.47931053]
[1641126453257,12.12180481,175.69,175.62,30.3505]
[1641126453858,2.76396176,175.69,175.65,4.04060373]
[1641126454759,12.12179013,175.69,175.62,30.3505]
[1641126455259,2.76395466,175.69,175.65,4.04059728]
[1641126456059,29.699,175.71,175.62,30.3505]
[1641126456259,12.12177223,175.69,175.62,30.3505]
[1641126456759,29.699,175.71,175.62,30.3505]
[1641126456965,12.82825911,175.7,175.65,4.04060306]
[1641126457361,27.66479,175.68,175.65,4.04060306]
[1641126457562,27.66479,175.68,175.62,30.3505]
[1641126458062,2.76396102,175.67,175.65,4.04059996]
[1641126458761,27.66479,175.68,175.62,30.3505]
[1641126459361,2.76396366,175.67,175.65,4.04060546]
[1641126459969,27.66479,175.68,175.62,30.3505]
[1641126460664,27.66479,175.68,175.65,4.04059584]
[1641126460865,2.76395308,175.67,175.65,9.46559584]
[1641126462067,27.66479,175.68,175.65,5.425]
[1641126462670,2.76396064,175.67,175.65,9.46560271]
[1641126463370,27.66479,175.68,175.65,5.425]
[1641126464069,2.7639594,175.67,175.65,9.46560159]
[1641126464470,27.66479,175.68,175.65,5.425]
[1641126465572,4.04061055,175.66,175.65,9.46561055]
[1641126466270,12.12178751,175.7,175.65,6.70186548]
[1641126466571,12.12178751,175.7,175.65,1.27686548]
[1641126466871,12.12178751,175.7,175.65,7.62786548]
[1641126467070,4.04131137,175.66,175.65,10.39231137]
[1641126467472,14.88623322,175.7,175.65,13.39231137]
[1641126467672,14.88623322,175.7,175.66,3.0]
[1641126467876,12.12178751,175.7,175.68,3.0]
[1641126468074,12.12178751,175.72,175.69,3.0]
[1641126468273,12.12178751,175.72,175.69,6.53]
[1641126469075,2.76307924,175.73,175.7,1.27698989]
[1641126470177,27.66479,175.74,175.69,6.53]
[1641126470979,2.76275092,175.73,175.7,1.27701973]
[1641126471781,27.66479,175.74,175.68,15.12881053]
[1641126471980,27.66479,175.74,175.69,1.27701971]
[1641126472479,27.66479,175.74,175.67,3.0]
[1641126472682,21.20104688,175.74,175.67,3.0]
[1641126472881,21.20104688,175.74,175.68,3.0]
[1641126473080,21.20104688,175.74,175.68,4.26945764]
[1641126473680,21.20104688,175.74,175.68,1.26945764]
[1641126473886,21.20104688,175.74,175.67,3.0]
[1641126474582,21.20104688,175.74,175.68,1.26972022]
[1641126475485,21.20104688,175.74,175.67,4.26972022]
[1641126476085,21.20104688,175.74,175.68,1.26972022]
[1641126478686,21.20104688,175.74,175.68,12.12881053]
[1641126479690,21.20104688,175.74,175.69,12.12881053]
[1641126480887,12.04782095,175.77,175.69,12.12881053]
[1641126481589,27.66479,175.76,175.69,12.12881053]
[1641126481789,33.98779,175.76,175.69,12.12881053]
[1641126482188,2.76287757,175.75,175.68,19.4977643]
[1641126487197,2.76287757,175.75,175.69,12.12881053]
[1641126487898,2.76287757,175.75,175.68,19.4977643]
[1641126488998,12.04782095,175.76,175.68,12.12881053]
[1641126490699,14.81069852,175.77,175.69,12.12881053]
[1641126493102,2.76287757,175.77,175.7,27.66479]
[1641126493702,2.76287757,175.76,175.7,27.66479]
[1641126494401,41.97102095,175.78,175.71,1.26972022]
[1641126494402,2.76287757,175.77,175.71,1.26972022]
[1641126494602,14.81069852,175.77,175.71,1.26972022]
[1641126495802,2.76287757,175.77,175.71,1.26972022]
[1641126505910,10.42387757,175.77,175.71,1.26972022]
[1641126506207,7.42387757,175.77,175.71,1.26972022]
[1641126506609,14.81069852,175.76,175.68,19.49675207]
[1641126507414,12.04782095,175.76,175.7,27.66479]
[1641126507714,12.04782095,175.76,175.7,34.12679]
[1641126508113,2.76287757,175.77,175.71,1.26972022]
[1641126509317,14.81069852,175.77,175.71,1.26972022]
[1641126513127,12.04782095,175.76,175.71,1.26972022]
[1641126522639,14.81069852,175.77,175.71,1.26972022]
[1641126523942,12.04782095,175.76,175.71,1.26972022]
[1641126527651,12.04782095,175.76,175.72,4.03975524]
[1641126528254,14.81069852,175.77,175.72,4.03975524]
[1641126528955,12.04782095,175.76,175.72,4.03975524]
[1641126531660,14.81069852,175.77,175.72,4.03975524]
[1641126533559,14.81069852,175.77,175.7,6.462]
[1641126533761,14.81069852,175.77,175.69,27.66479]
[1641126534361,14.81069852,175.77,175.72,4.03975776]
[1641126534562,14.81069852,175.77,175.72,9.77075776]
[1641126534861,14.81069852,175.77,175.72,5.731]
[1641126535065,14.81069852,175.77,175.73,5.31656692]
[1641126535663,12.11908555,175.76,175.72,9.77069518]
[1641126536262,29.9232,175.78,175.72,5.731]
[1641126536463,14.88184687,175.77,175.72,5.731]
[1641126537464,14.88184687,175.77,175.72,9.77069105]
[1641126538263,14.88184687,175.77,175.72,5.731]
[1641126538463,12.11904312,175.76,175.72,5.731]
[1641126539565,12.82370586,175.77,175.72,9.77076554]
[1641126540067,12.11929281,175.76,175.72,5.731]
[1641126540268,12.11929281,175.76,175.68,12.12881053]
[1641126540867,12.82370586,175.77,175.72,4.03976538]
[1641126541068,12.82370586,175.77,175.72,9.90676538]
[1641126541568,12.11934002,175.76,175.72,5.867]
[1641126542571,12.82370586,175.77,175.72,5.867]
[1641126542776,12.82370586,175.77,175.72,9.90677267]
[1641126543374,12.11933077,175.76,175.72,5.867]
[1641126544272,12.82370586,175.77,175.72,5.867]
[1641126544978,12.82370586,175.77,175.72,9.90680513]
[1641126545174,12.11941539,175.76,175.72,9.90680513]
[1641126546076,12.82370586,175.77,175.72,5.867]
[1641126546277,12.82370586,175.77,175.7,27.66479]
[1641126546476,12.82370586,175.77,175.68,17.12781053]
[1641126546675,12.82370586,175.77,175.72,4.03979842]
[1641126546876,12.11939527,175.76,175.72,4.03979842]
[1641126547477,14.88190068,175.77,175.73,4.03969898]
[1641126548079,14.88190068,175.77,175.72,6.345]
[1641126548376,14.88190068,175.77,175.72,10.38476388]
[1641126548676,14.88190068,175.77,175.72,6.345]
[1641126548876,12.11909693,175.76,175.71,31.2872]
[1641126549679,12.82372288,175.77,175.72,5.31663906]
[1641126549881,12.82372288,175.77,175.72,11.68763906]
[1641126550081,14.88187539,175.77,175.73,5.31656689]
[1641126551180,14.88187539,175.77,175.72,6.371]
[1641126551382,12.11907164,175.76,175.72,10.41068791]
[1641126551882,12.82342582,175.77,175.72,6.371]
[1641126552582,12.11905023,175.76,175.72,10.41068341]
[1641126553782,12.82342582,175.77,175.72,6.371]
[1641126554182,12.82342582,175.77,175.72,9.371]
[1641126554386,2.76280375,175.77,175.72,9.371]
[1641126554585,2.76280375,175.78,175.75,4.0390652]
[1641126555591,27.66479,175.79,175.72,9.371]
[1641126555788,27.66479,175.79,175.76,4.03884059]
[1641126555988,27.66479,175.79,175.76,10.89684059]
[1641126556887,27.66479,175.79,175.76,6.858]
[1641126557087,2.76181128,175.78,175.76,6.858]
[1641126557586,27.66479,175.79,175.76,6.858]
[1641126557786,27.66479,175.79,175.76,10.89679529]
[1641126558588,27.66479,175.79,175.76,6.858]
[1641126558787,2.76182449,175.78,175.76,6.858]
[1641126559286,27.66479,175.79,175.76,10.89684085]
[1641126559489,27.66479,175.79,175.76,4.03884085]
[1641126560088,2.76187788,175.78,175.73,1.27696146]
[1641126560289,2.76187788,175.78,175.73,4.27696146]
[1641126560692,2.76187788,175.78,175.73,1.27696146]
[1641126560892,27.66479,175.79,175.74,1.27696146]
[1641126561194,27.66479,175.79,175.77,4.03873227]
[1641126561592,2.76165023,175.78,175.73,13.40579269]
[1641126562194,9.26165023,175.78,175.73,13.40579269]
[1641126562694,6.5,175.78,175.77,4.03878194]
[1641126563492,6.5,175.78,175.73,13.40579269]
[1641126563695,9.26220085,175.78,175.75,4.03913295]
[1641126565192,2.76247234,175.77,175.74,4.03937976]
[1641126565693,18.61813927,175.78,175.71,31.2872]
[1641126565894,6.5,175.78,175.72,1.27690534]
[1641126566593,2.76249824,175.77,175.74,4.0394033]
[1641126567293,2.76250324,175.78,175.72,1.27690461]
[1641126567893,2.76250324,175.78,175.72,28.94169461]
[1641126568294,14.88071985,175.78,175.74,4.03940554]
[1641126568793,12.11821661,175.78,175.73,5.31637122]
[1641126569794,20.15021661,175.78,175.71,31.2872]
[1641126569993,27.66479,175.76,175.71,31.2872]
[1641126570399,20.15021661,175.78,175.71,31.2872]
[1641126570595,2.76250324,175.75,175.72,5.31657798]
[1641126571195,14.88105318,175.77,175.68,12.12881053]
[1641126571395,46.00355318,175.77,175.68,44.30541053]
[1641126571897,27.66479,175.76,175.68,44.30541053]
[1641126572098,42.54584318,175.76,175.72,4.03972173]
[1641126572598,2.7628324,175.75,175.69,1.27687322]
[1641126573602,27.66479,175.76,175.73,4.03970402]
[1641126574702,27.66479,175.76,175.7,5.661]
[1641126574905,2.76312185,175.75,175.71,4.03997022]
[1641126575906,39.78470067,175.76,175.7,5.661]
[1641126576106,27.66479,175.76,175.72,4.03977404]
[1641126577506,27.66479,175.76,175.68,44.30541053]
[1641126577707,14.88309607,175.75,175.71,4.040028]
[1641126578206,40.48979044,175.76,175.68,32.1766]
[1641126579107,30.42796806,175.76,175.68,32.1766]
[1641126579308,14.88325611,175.75,175.71,4.04002602]
[1641126580110,14.88325611,175.75,175.68,32.1766]
[1641126580309,27.66479,175.76,175.68,32.1766]
[1641126580711,31.1225,175.77,175.68,32.1766]
[1641126581115,14.88345885,175.75,175.71,4.04007421]
[1641126581910,14.88345885,175.75,175.68,32.1766]
[1641126582118,12.12022262,175.75,175.68,32.1766]
[1641126583418,12.12022262,175.75,175.71,4.04000587]
[1641126583914,12.82527035,175.76,175.68,32.1766]
[1641126584114,12.82527035,175.76,175.7,1.27685273]
[1641126585116,12.12019617,175.75,175.71,4.04006539]
[1641126586616,12.12019617,175.75,175.69,6.459]
[1641126586818,14.8834324,175.76,175.72,4.03976227]
[1641126587418,31.1225,175.77,175.69,6.459]
[1641126588117,27.66479,175.78,175.69,6.459]
[1641126588521,14.88198966,175.76,175.72,4.03971587]
[1641126589019,27.66479,175.78,175.7,30.66479]
[1641126589218,2.76233393,175.77,175.75,4.03925394]
[1641126589418,2.76233393,175.77,175.75,8.99925394]
[1641126590118,27.66479,175.78,175.75,4.96]
[1641126590418,27.66479,175.78,175.76,5.31593424]
[1641126590818,27.66479,175.78,175.75,4.96]
[1641126591018,2.76197345,175.77,175.75,4.96]
[1641126591620,27.66479,175.78,175.76,4.03885407]
[1641126591920,27.66479,175.78,175.76,5.31581406]
[1641126592322,2.76208461,175.77,175.75,4.03902728]
[1641126593323,27.66479,175.78,175.72,42.22071053]
[1641126593525,27.66479,175.78,175.76,4.03901951]
[1641126593924,27.66479,175.78,175.72,42.22071053]
[1641126594123,2.76196114,175.77,175.73,1.27695389]
[1641126594826,27.66479,175.78,175.76,4.03893984]
[1641126595626,27.66479,175.78,175.75,4.03901792]
[1641126595627,2.76207432,175.77,175.75,4.03901792]
[1641126596127,27.66479,175.78,175.72,30.0919]
[1641126596828,12.11705377,175.79,175.72,30.0919]
[1641126597029,2.76208461,175.77,175.75,4.03902727]
[1641126597535,12.1170991,175.79,175.72,30.0919]
[1641126598032,12.1170991,175.79,175.71,39.79360053]
[1641126598235,12.1170991,175.79,175.71,12.12881053]
[1641126598432,33.86119094,175.79,175.75,4.03903448]
[1641126598733,2.76209094,175.79,175.75,4.03903448]
[1641126599131,2.76209094,175.79,175.73,1.27694195]
[1641126599132,12.11758822,175.78,175.74,4.03919607]
[1641126599835,10.05885147,175.79,175.72,31.3949]
[1641126600036,12.82118416,175.79,175.73,1.27692579]
[1641126600737,12.11777668,175.78,175.74,4.03925889]
[1641126600937,18.27977668,175.78,175.74,4.03925889]
[1641126601338,6.162,175.78,175.73,5.31639278]
[1641126601539,12.11849128,175.77,175.73,5.31639278]
[1641126602042,14.88082397,175.77,175.72,31.3949]
[1641126602845,33.82679,175.78,175.73,5.31643345]
[1641126603445,14.88127483,175.77,175.72,31.3949]
[1641126603946,33.82679,175.78,175.73,5.31644284]
[1641126604947,33.82679,175.78,175.72,31.3949]
[1641126605149,2.75527667,175.77,175.72,31.3949]
[1641126605747,27.66479,175.78,175.72,31.3949]
[1641126606649,2.75528212,175.77,175.72,31.3949]
[1641126606848,7.28928212,175.77,175.72,31.3949]
[1641126607448,4.534,175.77,175.72,31.3949]
[1641126607952,27.66479,175.78,175.72,31.3949]
[1641126608150,2.75531839,175.76,175.72,31.3949]
[1641126608851,2.75531295,175.77,175.72,31.3949]
[1641126609250,27.66479,175.78,175.72,31.3949]
[1641126609953,2.75530743,175.77,175.72,31.3949]
[1641126610456,27.66479,175.78,175.72,31.3949]
[1641126610653,4.0286585,175.76,175.72,39.5915585]
[1641126611153,27.66479,175.78,175.72,35.5629]
[1641126611354,2.75514931,175.77,175.72,35.5629]
[1641126612155,4.03918861,175.75,175.74,4.03918861]
[1641126612755,27.66479,175.78,175.72,31.3949]
[1641126612957,2.76230111,175.77,175.72,31.3949]
[1641126613455,27.66479,175.78,175.72,31.3949]
[1641126613656,4.03939684,175.74,175.73,5.31630255]
[1641126614258,27.66479,175.78,175.72,31.3949]
[1641126614458,2.76245987,175.77,175.72,31.3949]
[1641126614958,39.78289526,175.78,175.72,31.3949]
[1641126615159,27.66479,175.78,175.75,4.03912611]
[1641126615859,2.76216642,175.77,175.72,31.3949]
[1641126616558,27.66479,175.78,175.75,4.03909497]
[1641126617459,2.76220404,175.77,175.72,31.3949]
[1641126618062,12.11754477,175.79,175.74,4.03918159]
[1641126618560,12.11754477,175.79,175.72,31.3949]
[1641126618763,12.11754477,175.79,175.75,4.03917789]
[1641126619364,12.11754477,175.78,175.74,4.03926398]
[1641126619962,2.76225028,175.78,175.76,4.03903815]
[1641126620764,27.66479,175.79,175.74,4.03050043]
[1641126621565,2.75627529,175.78,175.72,31.3949]
[1641126622266,30.66479,175.79,175.74,4.03054092]
[1641126622867,2.75659449,175.78,175.73,4.0308006]
[1641126623666,36.68779,175.79,175.72,31.3949]
[1641126623868,48.80490445,175.79,175.72,35.42577244]
[1641126624467,2.75664384,175.78,175.72,31.3949]
[1641126624969,48.80490445,175.79,175.72,35.42577333]
[1641126625571,48.80490445,175.79,175.72,31.3949]
[1641126625769,2.75671476,175.78,175.72,31.3949]
[1641126626271,2.75671476,175.78,175.72,35.42579739]
[1641126626878,2.75671476,175.78,175.72,31.3949]
[1641126627677,2.75671476,175.78,175.72,35.42579786]
[1641126628179,2.75671476,175.78,175.72,31.3949]
[1641126628878,2.75671476,175.78,175.72,35.42578495]
[1641126629478,2.75671476,175.78,175.72,31.3949]
[1641126630078,2.75671476,175.78,175.72,35.42578141]
[1641126630677,4.03084433,175.75,175.72,31.3949]
[1641126631578,2.75671476,175.78,175.72,4.03084562]
[1641126632185,4.03089163,175.75,175.72,1.274197]
[1641126632882,2.75671476,175.77,175.72,4.03089812]
[1641126633582,4.0308972,175.75,175.72,1.27419644]
[1641126634281,2.75669672,175.77,175.72,4.03089353]
[1641126634985,29.3298,175.78,175.71,32.5087]
[1641126635184,4.0394565,175.74,175.73,4.0394565]
[1641126635885,4.0394565,175.74,175.72,1.27689975]
[1641126635886,2.76245717,175.77,175.71,32.5087]
[1641126636585,29.3298,175.78,175.71,32.5087]
[1641126636786,4.03944128,175.74,175.73,4.03944128]
[1641126637187,2.76251223,175.77,175.71,32.5087]
[1641126637886,41.44804808,175.78,175.74,4.03941863]
[1641126638590,2.76246438,175.77,175.71,32.5087]
[1641126639186,41.44804808,175.78,175.71,32.5087]
[1641126639388,29.3298,175.78,175.73,4.03444911]
[1641126639987,2.75912556,175.77,175.71,32.5087]
[1641126640887,9.20812556,175.77,175.71,29.5087]
[1641126641086,12.20812556,175.77,175.71,29.5087]
[1641126641293,9.449,175.77,175.73,4.03450618]
[1641126641494,6.449,175.77,175.73,4.03450618]
[1641126641697,9.449,175.77,175.73,4.03450618]
[1641126641892,27.66479,175.74,175.73,4.03450618]
[1641126642293,27.66479,175.74,175.71,29.5087]
[1641126642693,27.66479,175.74,175.71,4.03507054]
[1641126643295,27.66479,175.74,175.68,30.5415]
[1641126644096,12.11824808,175.77,175.71,4.03508531]
[1641126644699,14.87800295,175.77,175.68,30.5415]
[1641126645301,14.87800295,175.77,175.71,4.0350673]
[1641126645903,27.66479,175.75,175.71,4.0350673]
[1641126646204,27.66479,175.75,175.68,30.5415]
[1641126646802,2.75975487,175.74,175.71,4.03506615]
[1641126647906,27.66479,175.75,175.68,30.5415]